[Event "Early-Titled-Tuesday-Blitz-September-26-2023"]
[Site "Chess.com"]
[Date "2023.09.26"]
[Round "4"]
[White "Daniel_Salinas"]
[Black "BlitzWizard04"]
[Result "1-0"]
[WhiteElo "2436"]
[BlackElo "2626"]
[TimeControl "180+1"]
[EndTime "8:40:22 PDT"]
[Termination "Daniel_Salinas won by resignation"]

1. e4 {[%clk 0:02:55.5]} 1... c5 {[%clk 0:02:59.9]} 2. Nf3 {[%clk 0:02:55.2]}
2... e6 {[%clk 0:03:00.1]} 3. d4 {[%clk 0:02:55.2]} 3... cxd4 {[%clk 0:03:00.2]}
4. Nxd4 {[%clk 0:02:56.1]} 4... Nc6 {[%clk 0:03:00.5]} 5. Nc3 {[%clk 0:02:55.5]}
5... Qc7 {[%clk 0:03:00.6]} 6. g3 {[%clk 0:02:53.3]} 6... a6 {[%clk 0:03:00.7]}
7. Bg2 {[%clk 0:02:46.4]} 7... Nf6 {[%clk 0:03:01.3]} 8. O-O {[%clk 0:02:43.5]}
8... Nxd4 {[%clk 0:03:01.9]} 9. Qxd4 {[%clk 0:02:44.4]} 9... Bc5 {[%clk
0:03:01.9]} 10. Qd3 {[%clk 0:02:44.3]} 10... Ng4 {[%clk 0:03:01.4]} 11. Bf4
{[%clk 0:02:20.3]} 11... Ne5 {[%clk 0:02:55.8]} 12. Qe2 {[%clk 0:02:05.8]} 12...
d6 {[%clk 0:02:56.2]} 13. Rad1 {[%clk 0:01:58.9]} 13... b5 {[%clk 0:02:47.4]}
14. Kh1 {[%clk 0:01:58]} 14... Bb7 {[%clk 0:02:46.2]} 15. Bc1 {[%clk 0:01:55.2]}
15... h5 {[%clk 0:02:42.9]} 16. f4 {[%clk 0:01:54.3]} 16... Ng4 {[%clk 0:02:43]}
17. h3 {[%clk 0:01:43.6]} 17... O-O-O {[%clk 0:02:41.9]} 18. Bf3 {[%clk
0:01:03]} 18... Qb6 {[%clk 0:02:13.2]} 19. Rde1 {[%clk 0:00:47.7]} 19... Bf2
{[%clk 0:01:55.3]} 20. Rxf2 {[%clk 0:00:34.8]} 20... Nxf2+ {[%clk 0:01:44.3]}
21. Kg2 {[%clk 0:00:33]} 21... Nxh3 {[%clk 0:01:40.5]} 22. Kxh3 {[%clk
0:00:31.7]} 22... Qc7 {[%clk 0:01:30.5]} 23. Bd2 {[%clk 0:00:21.8]} 23... f6
{[%clk 0:01:30.3]} 24. Qd3 {[%clk 0:00:15.9]} 24... Rhg8 {[%clk 0:01:24.1]} 25.
Kg2 {[%clk 0:00:13.9]} 25... g5 {[%clk 0:01:21.1]} 26. fxg5 {[%clk 0:00:14.3]}
26... fxg5 {[%clk 0:01:16.8]} 27. Bxh5 {[%clk 0:00:15]} 27... d5 {[%clk
0:01:12.9]} 28. exd5 {[%clk 0:00:13.9]} 28... Bxd5+ {[%clk 0:01:07.2]} 29. Nxd5
{[%clk 0:00:09.9]} 29... Rxd5 {[%clk 0:01:08.1]} 30. Qe2 {[%clk 0:00:09.2]}
30... Rgd8 {[%clk 0:00:50.2]} 31. Bc3 {[%clk 0:00:07.4]} 31... e5 {[%clk
0:00:46]} 32. Bf3 {[%clk 0:00:06.9]} 32... Rc5 {[%clk 0:00:45.4]} 33. Rd1 {[%clk
0:00:02.3]} 33... Rf8 {[%clk 0:00:38.3]} 34. Be4 {[%clk 0:00:02]} 34... Rh8
{[%clk 0:00:29.3]} 35. Qg4+ {[%clk 0:00:02.1]} 35... Kb8 {[%clk 0:00:28.2]} 36.
Qxg5 {[%clk 0:00:03]} 36... Rf8 {[%clk 0:00:19.7]} 37. Rd5 {[%clk 0:00:03]}
37... Rxd5 {[%clk 0:00:15.3]} 38. Bxd5 {[%clk 0:00:03.9]} 38... Re8 {[%clk
0:00:16.2]} 39. Qe3 {[%clk 0:00:04.3]} 39... e4 {[%clk 0:00:14.3]} 40. Bxe4
{[%clk 0:00:03.4]} 40... Qc4 {[%clk 0:00:13.8]} 41. Kf3 {[%clk 0:00:03.4]} 41...
Rf8+ {[%clk 0:00:13.8]} 42. Kg2 {[%clk 0:00:02.8]} 42... Qe6 {[%clk 0:00:12.6]}
43. Bd4 {[%clk 0:00:01.6]} 43... Re8 {[%clk 0:00:12.5]} 44. Qf4+ {[%clk
0:00:02.3]} 44... Kc8 {[%clk 0:00:13.1]} 45. Bf3 {[%clk 0:00:03.2]} 45... Qxa2
{[%clk 0:00:11.2]} 46. Bg4+ {[%clk 0:00:03.7]} 46... Kb7 {[%clk 0:00:11.7]} 47.
Bf3+ {[%clk 0:00:04.4]} 47... Kc8 {[%clk 0:00:11.5]} 48. Qd6 {[%clk 0:00:04.5]}
48... Qe6 {[%clk 0:00:05.7]} 49. Qxe6+ {[%clk 0:00:04.5]} 49... Rxe6 {[%clk
0:00:06.6]} 50. Bg4 {[%clk 0:00:05.4]} 50... Kd7 {[%clk 0:00:07.3]} 51. Bxe6+
{[%clk 0:00:05.9]} 51... Kxe6 {[%clk 0:00:08.2]} 52. Kf3 {[%clk 0:00:06.5]}
52... Kd5 {[%clk 0:00:09.1]} 53. Bh8 {[%clk 0:00:06]} 53... Ke6 {[%clk 0:00:10]}
54. Ke4 {[%clk 0:00:06.2]} 54... Kf7 {[%clk 0:00:10.7]} 55. Kd5 {[%clk
0:00:06.8]} 1-0

[Event "Early-Titled-Tuesday-Blitz-September-26-2023"]
[Site "Chess.com"]
[Date "2023.09.26"]
[Round "4"]
[White "Alina_Gumerovna"]
[Black "Flaccidmoves"]
[Result "1-0"]
[WhiteElo "2160"]
[BlackElo "2447"]
[TimeControl "180+1"]
[EndTime "8:40:26 PDT"]
[Termination "Alina_Gumerovna won by checkmate"]

1. e4 {[%clk 0:03:00]} 1... e6 {[%clk 0:02:37.1]} 2. d4 {[%clk 0:02:47.4]} 2...
d5 {[%clk 0:02:37.4]} 3. exd5 {[%clk 0:02:47.8]} 3... exd5 {[%clk 0:02:38.3]} 4.
Nf3 {[%clk 0:02:47.8]} 4... Bd6 {[%clk 0:02:38]} 5. Bd3 {[%clk 0:02:48.2]} 5...
Ne7 {[%clk 0:02:38.2]} 6. O-O {[%clk 0:02:47.5]} 6... O-O {[%clk 0:02:38.6]} 7.
c3 {[%clk 0:02:45.1]} 7... Bf5 {[%clk 0:02:38.3]} 8. Re1 {[%clk 0:02:44.2]} 8...
Bxd3 {[%clk 0:02:25]} 9. Qxd3 {[%clk 0:02:45.1]} 9... c6 {[%clk 0:02:25.6]} 10.
Nbd2 {[%clk 0:02:40.8]} 10... Nd7 {[%clk 0:02:25.2]} 11. Nf1 {[%clk 0:02:41.1]}
11... Re8 {[%clk 0:02:06]} 12. Bg5 {[%clk 0:02:30.7]} 12... f6 {[%clk
0:02:02.1]} 13. Bh4 {[%clk 0:02:30.8]} 13... Nf8 {[%clk 0:02:01.5]} 14. Bg3
{[%clk 0:02:25.9]} 14... Bxg3 {[%clk 0:01:40.5]} 15. Nxg3 {[%clk 0:02:26.8]}
15... Qd7 {[%clk 0:01:35.9]} 16. Re3 {[%clk 0:02:23]} 16... Neg6 {[%clk
0:01:29.6]} 17. Rae1 {[%clk 0:02:21.9]} 17... Rxe3 {[%clk 0:01:23.5]} 18. Qxe3
{[%clk 0:02:21.5]} 18... Kf7 {[%clk 0:01:18.9]} 19. h3 {[%clk 0:01:52.1]} 19...
Re8 {[%clk 0:01:15.1]} 20. Qxe8+ {[%clk 0:01:52.1]} 20... Qxe8 {[%clk 0:01:16]}
21. Rxe8 {[%clk 0:01:53]} 21... Kxe8 {[%clk 0:01:16.9]} 22. Kf1 {[%clk
0:01:53.3]} 22... Nf4 {[%clk 0:01:09.6]} 23. Ne1 {[%clk 0:01:53.4]} 23... g6
{[%clk 0:00:58.4]} 24. f3 {[%clk 0:01:45.1]} 24... h5 {[%clk 0:00:53.1]} 25. h4
{[%clk 0:01:39]} 25... Nd7 {[%clk 0:00:46.3]} 26. Ne2 {[%clk 0:01:37.5]} 26...
Ne6 {[%clk 0:00:42.1]} 27. Kf2 {[%clk 0:01:36.9]} 27... Nb6 {[%clk 0:00:41.2]}
28. b3 {[%clk 0:01:37]} 28... Nc8 {[%clk 0:00:41.4]} 29. Nd3 {[%clk 0:01:36.9]}
29... Nd6 {[%clk 0:00:39.9]} 30. g4 {[%clk 0:01:34.9]} 30... hxg4 {[%clk
0:00:35.1]} 31. fxg4 {[%clk 0:01:35.8]} 31... Ne4+ {[%clk 0:00:35.6]} 32. Ke3
{[%clk 0:01:34.9]} 32... Kf7 {[%clk 0:00:24.9]} 33. c4 {[%clk 0:01:32.9]} 33...
Nd6 {[%clk 0:00:19.6]} 34. cxd5 {[%clk 0:01:26.3]} 34... cxd5 {[%clk 0:00:20.5]}
35. Nef4 {[%clk 0:01:23.3]} 35... Nc7 {[%clk 0:00:20.8]} 36. Nb4 {[%clk
0:01:22.2]} 36... f5 {[%clk 0:00:09.1]} 37. g5 {[%clk 0:01:17.9]} 37... Ne4
{[%clk 0:00:08.6]} 38. Nbxd5 {[%clk 0:01:15.5]} 38... Nxd5+ {[%clk 0:00:09.5]}
39. Nxd5 {[%clk 0:01:16.3]} 39... Ke6 {[%clk 0:00:09.7]} 40. Nf4+ {[%clk
0:01:16.6]} 40... Kf7 {[%clk 0:00:09.3]} 41. d5 {[%clk 0:01:02.6]} 41... Nd6
{[%clk 0:00:08.6]} 42. Kd4 {[%clk 0:01:01.1]} 42... Nb5+ {[%clk 0:00:08.3]} 43.
Ke5 {[%clk 0:00:55.6]} 43... a6 {[%clk 0:00:04.9]} 44. d6 {[%clk 0:00:54.4]}
44... Na7 {[%clk 0:00:05.4]} 45. Kd5 {[%clk 0:00:49.9]} 45... Nc6 {[%clk
0:00:05.5]} 46. a3 {[%clk 0:00:50.2]} 46... Nd8 {[%clk 0:00:05.4]} 47. b4 {[%clk
0:00:48.2]} 47... b6 {[%clk 0:00:04.9]} 48. Nd3 {[%clk 0:00:46.7]} 48... Kg7
{[%clk 0:00:04.2]} 49. d7 {[%clk 0:00:44.4]} 49... Kf7 {[%clk 0:00:04.3]} 50.
Kd6 {[%clk 0:00:44.3]} 50... Kg7 {[%clk 0:00:03.7]} 51. Ke7 {[%clk 0:00:41.1]}
51... Nc6+ {[%clk 0:00:03.6]} 52. Ke8 {[%clk 0:00:41.3]} 52... a5 {[%clk
0:00:03.5]} 53. bxa5 {[%clk 0:00:39.9]} 53... bxa5 {[%clk 0:00:03.1]} 54. d8=Q
{[%clk 0:00:39.7]} 54... Nxd8 {[%clk 0:00:03.5]} 55. Kxd8 {[%clk 0:00:40.6]}
55... Kf7 {[%clk 0:00:04.2]} 56. Kd7 {[%clk 0:00:40.9]} 56... Kg7 {[%clk
0:00:03.8]} 57. Ke6 {[%clk 0:00:40.8]} 57... Kh7 {[%clk 0:00:03.7]} 58. Kf7
{[%clk 0:00:40.5]} 58... Kh8 {[%clk 0:00:03.7]} 59. Kxg6 {[%clk 0:00:41.4]}
59... a4 {[%clk 0:00:03.6]} 60. Kxf5 {[%clk 0:00:41.2]} 60... Kh7 {[%clk
0:00:04.5]} 61. h5 {[%clk 0:00:41.3]} 61... Kg7 {[%clk 0:00:05]} 62. h6+ {[%clk
0:00:41.4]} 62... Kh8 {[%clk 0:00:05.7]} 63. Kf6 {[%clk 0:00:41.8]} 63... Kh7
{[%clk 0:00:06.6]} 64. g6+ {[%clk 0:00:41.2]} 64... Kh8 {[%clk 0:00:07.5]} 65.
Ne5 {[%clk 0:00:36.7]} 65... Kg8 {[%clk 0:00:08.4]} 66. h7+ {[%clk 0:00:36.5]}
66... Kf8 {[%clk 0:00:08.9]} 67. h8=Q# {[%clk 0:00:35.9]} 1-0

[Event "Early-Titled-Tuesday-Blitz-September-26-2023"]
[Site "Chess.com"]
[Date "2023.09.26"]
[Round "4"]
[White "Sinquefield"]
[Black "scarabee43"]
[Result "1/2-1/2"]
[WhiteElo "2532"]
[BlackElo "2773"]
[TimeControl "180+1"]
[EndTime "8:40:27 PDT"]
[Termination "Game drawn by repetition"]

1. d4 {[%clk 0:03:00.9]} 1... Nf6 {[%clk 0:02:59.4]} 2. Nf3 {[%clk 0:03:01.4]}
2... d5 {[%clk 0:02:59.1]} 3. c3 {[%clk 0:03:01.9]} 3... e6 {[%clk 0:02:57.5]}
4. Bg5 {[%clk 0:03:02.4]} 4... Be7 {[%clk 0:02:57.2]} 5. Nbd2 {[%clk 0:03:03]}
5... O-O {[%clk 0:02:57.4]} 6. e3 {[%clk 0:03:03.6]} 6... b6 {[%clk 0:02:57.7]}
7. Bd3 {[%clk 0:03:04.2]} 7... Ba6 {[%clk 0:02:55.2]} 8. Bxa6 {[%clk 0:03:01.8]}
8... Nxa6 {[%clk 0:02:55.8]} 9. Ne5 {[%clk 0:03:02.4]} 9... Nb8 {[%clk
0:02:55.1]} 10. O-O {[%clk 0:03:02]} 10... c5 {[%clk 0:02:55.1]} 11. f4 {[%clk
0:03:02.4]} 11... Qc8 {[%clk 0:02:53.3]} 12. Qf3 {[%clk 0:03:01.1]} 12... Nc6
{[%clk 0:02:53.5]} 13. Qh3 {[%clk 0:02:59.8]} 13... Re8 {[%clk 0:02:47.8]} 14.
g4 {[%clk 0:02:56.4]} 14... Nd7 {[%clk 0:02:36.8]} 15. Bxe7 {[%clk 0:02:51.1]}
15... Rxe7 {[%clk 0:02:36.8]} 16. Qh4 {[%clk 0:02:40.9]} 16... f6 {[%clk
0:02:31.2]} 17. Nxd7 {[%clk 0:02:32.4]} 17... Qxd7 {[%clk 0:02:30.8]} 18. g5
{[%clk 0:02:31.8]} 18... f5 {[%clk 0:02:25.8]} 19. Rf3 {[%clk 0:02:28.6]} 19...
g6 {[%clk 0:02:23.7]} 20. Qf2 {[%clk 0:02:22.6]} 20... c4 {[%clk 0:02:18.9]} 21.
h4 {[%clk 0:02:22.4]} 21... Kf7 {[%clk 0:02:09.9]} 22. h5 {[%clk 0:02:22.1]}
22... Rg8 {[%clk 0:02:07.1]} 23. Rh3 {[%clk 0:02:21.7]} 23... Ke8 {[%clk
0:02:06.9]} 24. Nf3 {[%clk 0:02:21.7]} 24... Kd8 {[%clk 0:02:06.7]} 25. Kg2
{[%clk 0:02:21.8]} 25... Kc7 {[%clk 0:02:04]} 26. Rah1 {[%clk 0:02:21.4]} 26...
b5 {[%clk 0:02:04.4]} 27. a3 {[%clk 0:02:12.8]} 27... a5 {[%clk 0:01:58.6]} 28.
Qc2 {[%clk 0:02:09.5]} 28... Kb7 {[%clk 0:01:53.8]} 29. Qf2 {[%clk 0:02:05.3]}
29... Ka6 {[%clk 0:01:47.2]} 30. Qd2 {[%clk 0:02:04.4]} 30... Qb7 {[%clk
0:01:45.8]} 31. Qf2 {[%clk 0:01:58.2]} 31... Ra8 {[%clk 0:01:34.2]} 32. Kg3
{[%clk 0:01:54.1]} 32... b4 {[%clk 0:01:29]} 33. axb4 {[%clk 0:01:49.7]} 33...
axb4 {[%clk 0:01:29.6]} 34. hxg6 {[%clk 0:01:49.5]} 34... hxg6 {[%clk
0:01:29.3]} 35. Rh8 {[%clk 0:01:36.1]} 35... Kb6 {[%clk 0:01:28]} 36. Qd2 {[%clk
0:01:26.6]} 36... b3 {[%clk 0:01:26.4]} 37. Ne5 {[%clk 0:01:24.4]} 37... Nxe5
{[%clk 0:01:25.4]} 38. dxe5 {[%clk 0:01:25.3]} 38... Kc6 {[%clk 0:01:12.6]} 39.
Qd4 {[%clk 0:01:18.3]} 39... Qa7 {[%clk 0:01:02.6]} 40. Rc8+ {[%clk 0:01:04.1]}
40... Kb5 {[%clk 0:00:57.7]} 41. Rxa8 {[%clk 0:00:22.5]} 41... Qxa8 {[%clk
0:00:56.7]} 42. Rh6 {[%clk 0:00:22.7]} 42... Qa1 {[%clk 0:00:52.5]} 43. Rh8
{[%clk 0:00:13.1]} 43... Rb7 {[%clk 0:00:33.8]} 44. Rc8 {[%clk 0:00:08.9]} 44...
Qa7 {[%clk 0:00:30.2]} 45. Qd2 {[%clk 0:00:05.5]} 45... Rh7 {[%clk 0:00:27.6]}
46. Rg8 {[%clk 0:00:03.9]} 46... Rh1 {[%clk 0:00:21.1]} 47. Rxg6 {[%clk
0:00:03.4]} 47... Qh7 {[%clk 0:00:20.7]} 48. Rh6 {[%clk 0:00:03.2]} 48... Rxh6
{[%clk 0:00:20]} 49. gxh6 {[%clk 0:00:04.1]} 49... Qxh6 {[%clk 0:00:20.4]} 50.
Qh2 {[%clk 0:00:04.8]} 50... Qg6+ {[%clk 0:00:20.5]} 51. Kf3 {[%clk 0:00:05]}
51... Qg4+ {[%clk 0:00:20.6]} 52. Kf2 {[%clk 0:00:04.1]} 52... Qd1 {[%clk
0:00:20.8]} 53. Qh8 {[%clk 0:00:03.7]} 53... Qc2+ {[%clk 0:00:20.5]} 54. Kf3
{[%clk 0:00:03.5]} 54... Qxb2 {[%clk 0:00:16.8]} 55. Qb8+ {[%clk 0:00:03.5]}
55... Ka4 {[%clk 0:00:16.5]} 56. Qa7+ {[%clk 0:00:02.7]} 56... Kb5 {[%clk
0:00:16.6]} 57. Qb7+ {[%clk 0:00:03.1]} 57... Ka5 {[%clk 0:00:16.8]} 58. Qa7+
{[%clk 0:00:03.5]} 58... Kb5 {[%clk 0:00:17.1]} 59. Qb7+ {[%clk 0:00:03.6]}
59... Ka5 {[%clk 0:00:17.4]} 60. Qa7+ {[%clk 0:00:03.9]} 60... Kb5 {[%clk
0:00:17.9]} 1/2-1/2

[Event "Early-Titled-Tuesday-Blitz-September-26-2023"]
[Site "Chess.com"]
[Date "2023.09.26"]
[Round "4"]
[White "esrosenberg"]
[Black "SRob2003"]
[Result "0-1"]
[WhiteElo "2354"]
[BlackElo "2631"]
[TimeControl "180+1"]
[EndTime "8:40:28 PDT"]
[Termination "SRob2003 won by resignation"]

1. Nf3 {[%clk 0:03:00.9]} 1... d5 {[%clk 0:03:00.3]} 2. d4 {[%clk 0:03:00.8]}
2... Nf6 {[%clk 0:03:00.2]} 3. c3 {[%clk 0:03:00.9]} 3... c5 {[%clk 0:03:00.4]}
4. dxc5 {[%clk 0:03:01.2]} 4... Nc6 {[%clk 0:02:59.9]} 5. b4 {[%clk 0:02:58.6]}
5... a5 {[%clk 0:02:46.7]} 6. b5 {[%clk 0:02:55.8]} 6... Na7 {[%clk 0:02:44.4]}
7. a4 {[%clk 0:02:56.4]} 7... Ne4 {[%clk 0:02:12.1]} 8. Ba3 {[%clk 0:02:46.8]}
8... e6 {[%clk 0:02:10.2]} 9. Qd4 {[%clk 0:02:45.6]} 9... f6 {[%clk 0:02:05.4]}
10. Nbd2 {[%clk 0:02:38.6]} 10... e5 {[%clk 0:01:47.1]} 11. Qe3 {[%clk
0:02:38.5]} 11... Nxd2 {[%clk 0:01:47.8]} 12. Qxd2 {[%clk 0:02:28.8]} 12... Be6
{[%clk 0:01:38.7]} 13. e3 {[%clk 0:02:13.8]} 13... Rc8 {[%clk 0:01:23.9]} 14. c4
{[%clk 0:02:13.9]} 14... Bxc5 {[%clk 0:01:05.6]} 15. cxd5 {[%clk 0:01:51.2]}
15... Bxa3 {[%clk 0:00:43.3]} 16. Rxa3 {[%clk 0:01:49.6]} 16... Qxd5 {[%clk
0:00:44]} 17. Qxd5 {[%clk 0:01:32]} 17... Bxd5 {[%clk 0:00:44.9]} 18. Ra1 {[%clk
0:01:32.2]} 18... Ke7 {[%clk 0:00:43.2]} 19. Be2 {[%clk 0:01:31.8]} 19... Rhd8
{[%clk 0:00:40.1]} 20. O-O {[%clk 0:01:31.7]} 20... Rc2 {[%clk 0:00:39.9]} 21.
Bd3 {[%clk 0:01:29.3]} 21... Rb2 {[%clk 0:00:37.8]} 22. Bxh7 {[%clk 0:01:22.4]}
22... g6 {[%clk 0:00:36.7]} 23. Bxg6 {[%clk 0:01:15.4]} 23... Bxf3 {[%clk
0:00:36.6]} 24. gxf3 {[%clk 0:01:01]} 24... Rg8 {[%clk 0:00:34.9]} 25. Rac1
{[%clk 0:01:01.6]} 25... Rxg6+ {[%clk 0:00:35.2]} 26. Kh1 {[%clk 0:01:02.3]}
26... Rg8 {[%clk 0:00:34.2]} 27. Rc7+ {[%clk 0:01:01.5]} 27... Ke6 {[%clk
0:00:32.2]} 28. Rxb7 {[%clk 0:01:01.9]} 28... Nc8 {[%clk 0:00:32.9]} 29. Rb8
{[%clk 0:00:55.8]} 29... Ne7 {[%clk 0:00:32.1]} 30. Rxg8 {[%clk 0:00:44.6]}
30... Nxg8 {[%clk 0:00:33]} 31. Kg2 {[%clk 0:00:43.7]} 31... Ne7 {[%clk
0:00:32.8]} 32. Rc1 {[%clk 0:00:41.2]} 32... Rb4 {[%clk 0:00:29.6]} 33. Rc7
{[%clk 0:00:34.5]} 33... Rxa4 {[%clk 0:00:29.1]} 34. b6 {[%clk 0:00:34.8]} 34...
Rb4 {[%clk 0:00:28.2]} 35. b7 {[%clk 0:00:33.8]} 35... Kd6 {[%clk 0:00:16]} 36.
Rc4 {[%clk 0:00:27.1]} 36... Rxb7 {[%clk 0:00:15.8]} 37. h4 {[%clk 0:00:27.4]}
37... Rb4 {[%clk 0:00:14.8]} 38. Rc1 {[%clk 0:00:12.6]} 38... Rxh4 {[%clk
0:00:13.7]} 39. Kg3 {[%clk 0:00:13.2]} 39... Rb4 {[%clk 0:00:13.8]} 40. e4
{[%clk 0:00:11.9]} 40... a4 {[%clk 0:00:14]} 41. Kg4 {[%clk 0:00:11]} 41... a3
{[%clk 0:00:13.8]} 42. Ra1 {[%clk 0:00:10.9]} 42... Ra4 {[%clk 0:00:14.1]} 43.
Ra2 {[%clk 0:00:11.5]} 43... Ke6 {[%clk 0:00:13.6]} 44. f4 {[%clk 0:00:11.2]}
44... Nc6 {[%clk 0:00:13.3]} 45. f5+ {[%clk 0:00:10.6]} 45... Kd6 {[%clk
0:00:13.4]} 46. f3 {[%clk 0:00:11.1]} 46... Nb4 {[%clk 0:00:14]} 47. Ra1 {[%clk
0:00:11.3]} 47... a2 {[%clk 0:00:14.7]} 48. Kh5 {[%clk 0:00:11]} 48... Nc2
{[%clk 0:00:15.3]} 49. Rc1 {[%clk 0:00:10]} 49... a1=Q {[%clk 0:00:15.2]} 50.
Rxa1 {[%clk 0:00:10.6]} 50... Rxa1 {[%clk 0:00:14.9]} 51. Kg6 {[%clk 0:00:11.5]}
51... Rg1+ {[%clk 0:00:15.5]} 52. Kxf6 {[%clk 0:00:11.8]} 52... Nd4 {[%clk
0:00:15.8]} 53. f4 {[%clk 0:00:11.4]} 53... exf4 {[%clk 0:00:15.9]} 54. e5+
{[%clk 0:00:12]} 54... Kd5 {[%clk 0:00:16.6]} 55. e6 {[%clk 0:00:12.4]} 55... f3
{[%clk 0:00:15]} 56. e7 {[%clk 0:00:11.9]} 56... Re1 {[%clk 0:00:15.7]} 57. Kf7
{[%clk 0:00:12]} 57... Nxf5 {[%clk 0:00:16.1]} 58. e8=Q {[%clk 0:00:12.2]} 58...
Nd6+ {[%clk 0:00:16.8]} 59. Kf6 {[%clk 0:00:10.9]} 59... Rxe8 {[%clk 0:00:17.5]}
0-1

[Event "Early-Titled-Tuesday-Blitz-September-26-2023"]
[Site "Chess.com"]
[Date "2023.09.26"]
[Round "4"]
[White "gau248"]
[Black "TimofeevAr"]
[Result "0-1"]
[WhiteElo "2591"]
[BlackElo "2874"]
[TimeControl "180+1"]
[EndTime "8:40:31 PDT"]
[Termination "TimofeevAr won by resignation"]

1. e4 {[%clk 0:03:00.9]} 1... e6 {[%clk 0:02:59.3]} 2. d4 {[%clk 0:02:59.9]}
2... d5 {[%clk 0:02:59.2]} 3. Nc3 {[%clk 0:03:00.4]} 3... dxe4 {[%clk 0:02:59]}
4. Nxe4 {[%clk 0:03:00.2]} 4... Nd7 {[%clk 0:02:59.5]} 5. Nf3 {[%clk 0:03:00.1]}
5... Ngf6 {[%clk 0:02:59.3]} 6. Ng3 {[%clk 0:02:57.7]} 6... c5 {[%clk 0:02:58]}
7. c3 {[%clk 0:02:57]} 7... cxd4 {[%clk 0:02:56.9]} 8. Nxd4 {[%clk 0:02:55.6]}
8... Bc5 {[%clk 0:02:56.9]} 9. Nb3 {[%clk 0:02:54.7]} 9... Bb6 {[%clk
0:02:54.3]} 10. Be2 {[%clk 0:02:52.7]} 10... O-O {[%clk 0:02:53.8]} 11. O-O
{[%clk 0:02:52.9]} 11... Qc7 {[%clk 0:02:47]} 12. a4 {[%clk 0:02:50.3]} 12... a5
{[%clk 0:02:43.6]} 13. Qc2 {[%clk 0:02:42.3]} 13... Ne5 {[%clk 0:02:37.5]} 14.
Bg5 {[%clk 0:02:37.5]} 14... Nd5 {[%clk 0:02:29.7]} 15. Rad1 {[%clk 0:02:31.7]}
15... Bd7 {[%clk 0:02:28.7]} 16. Nd4 {[%clk 0:02:26.8]} 16... h6 {[%clk
0:02:26]} 17. Bc1 {[%clk 0:02:22.8]} 17... Rad8 {[%clk 0:02:23.1]} 18. Qb3
{[%clk 0:02:14.6]} 18... Bxd4 {[%clk 0:02:17.6]} 19. Rxd4 {[%clk 0:02:15.5]}
19... Bc6 {[%clk 0:02:17.5]} 20. Rfd1 {[%clk 0:02:11.1]} 20... Nf6 {[%clk
0:02:05.7]} 21. Bf4 {[%clk 0:02:09.3]} 21... Nd5 {[%clk 0:02:04.5]} 22. Bxe5
{[%clk 0:01:54.1]} 22... Qxe5 {[%clk 0:02:04]} 23. c4 {[%clk 0:01:54.6]} 23...
Nf4 {[%clk 0:02:03.3]} 24. Rxd8 {[%clk 0:01:51.7]} 24... Nxe2+ {[%clk
0:02:01.5]} 25. Nxe2 {[%clk 0:01:50.3]} 25... Qxe2 {[%clk 0:02:01.6]} 26. Rxf8+
{[%clk 0:01:48.4]} 26... Kxf8 {[%clk 0:02:01.7]} 27. Qd3 {[%clk 0:01:33.5]}
27... Qxb2 {[%clk 0:01:47.1]} 28. Qd8+ {[%clk 0:01:10.3]} 28... Be8 {[%clk
0:01:46.6]} 29. Qxa5 {[%clk 0:01:10.7]} 29... Qb3 {[%clk 0:01:44.1]} 30. Qd2
{[%clk 0:00:52.1]} 30... Qxa4 {[%clk 0:01:41]} 31. c5 {[%clk 0:00:51.6]} 31...
Kg8 {[%clk 0:01:36.1]} 32. h3 {[%clk 0:00:49.7]} 32... Bc6 {[%clk 0:01:34.6]}
33. Qd8+ {[%clk 0:00:48.8]} 33... Kh7 {[%clk 0:01:34.4]} 34. Qd3+ {[%clk
0:00:49.3]} 34... f5 {[%clk 0:01:32.9]} 35. Qd4 {[%clk 0:00:40.6]} 35... Qb3
{[%clk 0:01:30]} 36. Re1 {[%clk 0:00:36.9]} 36... Bd5 {[%clk 0:01:29.5]} 37. Re3
{[%clk 0:00:35.6]} 37... Qb5 {[%clk 0:01:17.7]} 38. Rg3 {[%clk 0:00:34.5]} 38...
Qd7 {[%clk 0:01:17.7]} 39. Kh2 {[%clk 0:00:34.6]} 39... Qc7 {[%clk 0:01:17]} 40.
f4 {[%clk 0:00:32.2]} 40... Qd7 {[%clk 0:01:16.2]} 41. Qe5 {[%clk 0:00:31.4]}
41... Qf7 {[%clk 0:01:15.7]} 42. h4 {[%clk 0:00:30.3]} 42... Bc6 {[%clk
0:01:12.5]} 43. Kg1 {[%clk 0:00:26.5]} 43... Bd5 {[%clk 0:01:11.5]} 44. h5
{[%clk 0:00:24.1]} 44... Be4 {[%clk 0:01:06.1]} 45. Rg6 {[%clk 0:00:22]} 45...
Bd5 {[%clk 0:01:06.3]} 46. Kh2 {[%clk 0:00:21.6]} 46... Qe7 {[%clk 0:01:01.3]}
47. Kg1 {[%clk 0:00:18.9]} 47... Qxc5+ {[%clk 0:01:00.4]} 48. Kh1 {[%clk
0:00:19.3]} 48... Qe7 {[%clk 0:00:58.6]} 49. Kg1 {[%clk 0:00:19.1]} 49... b5
{[%clk 0:00:58.1]} 50. Rg3 {[%clk 0:00:19.4]} 50... b4 {[%clk 0:00:57.7]} 51.
Re3 {[%clk 0:00:17]} 51... Qf7 {[%clk 0:00:55.6]} 52. Rg3 {[%clk 0:00:16.1]}
52... b3 {[%clk 0:00:55.3]} 53. Qb2 {[%clk 0:00:15.9]} 53... Qc7 {[%clk
0:00:51.4]} 54. Kh2 {[%clk 0:00:16]} 54... Qb7 {[%clk 0:00:46.6]} 55. Kg1 {[%clk
0:00:13.2]} 55... Qf7 {[%clk 0:00:45]} 56. Qe5 {[%clk 0:00:11.5]} 56... Qf6
{[%clk 0:00:39.8]} 57. Qxf6 {[%clk 0:00:03.8]} 57... gxf6 {[%clk 0:00:37.9]} 58.
Re3 {[%clk 0:00:03.5]} 58... b2 {[%clk 0:00:35.6]} 59. Re1 {[%clk 0:00:03.4]}
59... Be4 {[%clk 0:00:35.7]} 0-1